[Event "Titled Tuesday Blitz April 18 Early 2023"]
[White "Camacho Collados, Jose"]
[Black "Rodriguez Santiago, Jaime"]
[WhiteFideId "2265427"]
[BlackFideId "3100898"]
[WhiteElo "2198"]
[BlackElo "2025"]
[Result "1-0"]
[Round "11"]
[TimeControl "180+2"]
[Date "2023.04.18"]
[WhiteClock "0:00:20"]
[BlackClock "0:00:04"]

1. d4 {[%clk 0:03:00]}  Nf6 {[%clk 0:02:59]} 2. c4 {[%clk 0:03:01]}  e6 {[%clk 0:02:59]} 3. Nc3 {[%clk 0:03:01]}  d5 {[%clk 0:02:58]} 4. Bg5 {[%clk 0:02:57]}  c6 {[%clk 0:02:58]} 5. e3 {[%clk 0:02:57]}  Nbd7 {[%clk 0:02:57]} 6. Nf3 {[%clk 0:02:57]}  Qa5 {[%clk 0:02:57]} 7. cxd5 {[%clk 0:02:49]}  exd5 {[%clk 0:02:48]} 8. Bd3 {[%clk 0:02:47]}  Bb4 {[%clk 0:02:47]} 9. Qc2 {[%clk 0:02:45]}  h6 {[%clk 0:02:45]} 10. Bh4 {[%clk 0:02:43]}  O-O {[%clk 0:02:44]} 11. O-O {[%clk 0:02:43]}  Re8 {[%clk 0:02:43]} 12. a3 {[%clk 0:02:41]}  Bd6 {[%clk 0:02:42]} 13. b4 {[%clk 0:02:41]}  Qc7 {[%clk 0:02:39]} 14. Rfc1 {[%clk 0:02:39]}  Qb8 {[%clk 0:02:37]} 15. Bg3 {[%clk 0:02:37]}  Bxg3 {[%clk 0:02:28]} 16. hxg3 {[%clk 0:02:38]}  a6 {[%clk 0:02:21]} 17. a4 {[%clk 0:02:38]}  b5 {[%clk 0:02:13]} 18. a5 {[%clk 0:02:29]}  Nf8 {[%clk 0:02:10]} 19. Ne5 {[%clk 0:02:20]}  Qd6 {[%clk 0:01:57]} 20. Na2 {[%clk 0:02:15]}  Bb7 {[%clk 0:01:46]} 21. Qc5 {[%clk 0:02:05]}  Qc7 {[%clk 0:01:26]} 22. Nxc6 {[%clk 0:01:53]}  Ne6 {[%clk 0:01:09]} 23. Qb6 {[%clk 0:01:49]}  Qxb6 {[%clk 0:00:54]} 24. axb6 {[%clk 0:01:50]}  Nd7 {[%clk 0:00:47]} 25. Na5 {[%clk 0:01:50]}  Reb8 {[%clk 0:00:45]} 26. Nc3 {[%clk 0:01:32]}  Nxb6 {[%clk 0:00:43]} 27. Nxb7 {[%clk 0:01:33]}  Rxb7 {[%clk 0:00:44]} 28. Nxb5 {[%clk 0:01:27]}  Nc4 {[%clk 0:00:43]} 29. Bxc4 {[%clk 0:01:23]}  dxc4 {[%clk 0:00:43]} 30. Nd6 {[%clk 0:01:22]}  Rxb4 {[%clk 0:00:43]} 31. Rxc4 {[%clk 0:01:21]}  Rb2 {[%clk 0:00:43]} 32. Rca4 {[%clk 0:01:16]}  Rab8 {[%clk 0:00:33]} 33. Rxa6 {[%clk 0:01:16]}  Ng5 {[%clk 0:00:33]} 34. Ra8 {[%clk 0:01:15]}  Rxa8 {[%clk 0:00:29]} 35. Rxa8+ {[%clk 0:01:16]}  Kh7 {[%clk 0:00:30]} 36. Ra1 {[%clk 0:01:08]}  Kg6 {[%clk 0:00:25]} 37. Rd1 {[%clk 0:01:06]}  f6 {[%clk 0:00:25]} 38. Nc4 {[%clk 0:01:02]}  Rc2 {[%clk 0:00:24]} 39. Nd2 {[%clk 0:01:02]}  h5 {[%clk 0:00:23]} 40. Kf1 {[%clk 0:01:02]}  h4 {[%clk 0:00:23]} 41. gxh4 {[%clk 0:01:01]}  Ne6 {[%clk 0:00:24]} 42. f3 {[%clk 0:01:00]}  Kh5 {[%clk 0:00:24]} 43. g3 {[%clk 0:00:59]}  g5 {[%clk 0:00:24]} 44. hxg5 {[%clk 0:00:59]}  Nxg5 {[%clk 0:00:24]} 45. Ke2 {[%clk 0:00:59]}  f5 {[%clk 0:00:22]} 46. Kd3 {[%clk 0:00:59]}  Ra2 {[%clk 0:00:22]} 47. Rh1+ {[%clk 0:00:58]}  Kg6 {[%clk 0:00:21]} 48. Rh8 {[%clk 0:00:58]}  Kg7 {[%clk 0:00:20]} 49. Rb8 {[%clk 0:00:57]}  Kf6 {[%clk 0:00:20]} 50. Rb6+ {[%clk 0:00:56]}  Ke7 {[%clk 0:00:19]} 51. Rb5 {[%clk 0:00:53]}  Kf6 {[%clk 0:00:17]} 52. Rb6+ {[%clk 0:00:52]}  Ke7 {[%clk 0:00:18]} 53. g4 {[%clk 0:00:53]}  fxg4 {[%clk 0:00:17]} 54. fxg4 {[%clk 0:00:54]}  Ne6 {[%clk 0:00:16]} 55. Nc4 {[%clk 0:00:51]}  Rh2 {[%clk 0:00:14]} 56. e4 {[%clk 0:00:46]}  Rg2 {[%clk 0:00:14]} 57. Rb7+ {[%clk 0:00:42]}  Kd8 {[%clk 0:00:12]} 58. Ne5 {[%clk 0:00:40]}  Rg3+ {[%clk 0:00:11]} 59. Kc4 {[%clk 0:00:40]}  Nc7 {[%clk 0:00:09]} 60. d5 {[%clk 0:00:35]}  Re3 {[%clk 0:00:09]} 61. Kd4 {[%clk 0:00:34]}  Re1 {[%clk 0:00:09]} 62. g5 {[%clk 0:00:33]}  Rd1+ {[%clk 0:00:09]} 63. Nd3 {[%clk 0:00:33]}  Rg1 {[%clk 0:00:08]} 64. Nf4 {[%clk 0:00:32]}  Rg4 {[%clk 0:00:07]} 65. Ke5 {[%clk 0:00:22]}  Rxg5+ {[%clk 0:00:06]} 66. Kd6 {[%clk 0:00:22]}  Rg6+ {[%clk 0:00:06]} 67. Ne6+ {[%clk 0:00:20]}  Nxe6 {[%clk 0:00:06]} 68. dxe6 {[%clk 0:00:21]}  Kc8 {[%clk 0:00:04]} 69. Rc7+ {[%clk 0:00:21]}  Kd8 {[%clk 0:00:04]} 70. Ra7 {[%clk 0:00:21]}  Kc8 {[%clk 0:00:02]} 71. Ra8+ {[%clk 0:00:21]}  Kb7 {[%clk 0:00:02]} 72. Re8 {[%clk 0:00:21]}  Rg4 {[%clk 0:00:01]} 73. Ke5 {[%clk 0:00:20]}  Rg3 {[%clk 0:00:02]} 74. e7 {[%clk 0:00:19]}  Rg2 {[%clk 0:00:03]} 75. Rd8 {[%clk 0:00:19]}  Rg1 {[%clk 0:00:03]} 76. e8=Q {[%clk 0:00:18]}  Rg3 {[%clk 0:00:04]} 77. Qb5+ {[%clk 0:00:18]}  Kc7 {[%clk 0:00:04]} 78. Rd7+ {[%clk 0:00:19]}  Kc8 {[%clk 0:00:04]} 79. Qb7# {[%clk 0:00:20]} 1-0


[Site "https://www.chess.com"]

[Event "Titled Tuesday Blitz April 18 Early 2023"]
[White "Zaichenko, Daria"]
[Black "Mouhamad, Joachim"]
[WhiteFideId "4197453"]
[BlackFideId "656410"]
[WhiteElo "2039"]
[BlackElo "2125"]
[Result "0-1"]
[Round "11"]
[TimeControl "180+2"]
[Date "2023.04.18"]
[WhiteClock "0:00:02"]
[BlackClock "0:00:07"]

1. e4 {[%clk 0:02:55]}  c5 {[%clk 0:02:56]} 2. Nf3 {[%clk 0:02:55]}  Nc6 {[%clk 0:02:55]} 3. d4 {[%clk 0:02:56]}  cxd4 {[%clk 0:02:56]} 4. Nxd4 {[%clk 0:02:56]}  Nf6 {[%clk 0:02:57]} 5. Nc3 {[%clk 0:02:56]}  d6 {[%clk 0:02:58]} 6. Be3 {[%clk 0:02:52]}  Ng4 {[%clk 0:02:55]} 7. Bc1 {[%clk 0:02:47]}  Qb6 {[%clk 0:02:22]} 8. Nce2 {[%clk 0:02:22]}  g6 {[%clk 0:02:17]} 9. h3 {[%clk 0:02:21]}  Nf6 {[%clk 0:01:48]} 10. f3 {[%clk 0:02:10]}  Bg7 {[%clk 0:01:46]} 11. Nxc6 {[%clk 0:02:10]}  bxc6 {[%clk 0:01:44]} 12. Qd4 {[%clk 0:02:10]}  O-O {[%clk 0:01:40]} 13. c3 {[%clk 0:02:04]}  c5 {[%clk 0:01:38]} 14. Qa4 {[%clk 0:02:01]}  Bd7 {[%clk 0:01:36]} 15. Qc2 {[%clk 0:02:00]}  Rab8 {[%clk 0:01:29]} 16. g3 {[%clk 0:01:57]}  e5 {[%clk 0:01:17]} 17. c4 {[%clk 0:01:54]}  Nh5 {[%clk 0:01:14]} 18. Bg2 {[%clk 0:01:49]}  f5 {[%clk 0:01:03]} 19. O-O {[%clk 0:01:47]}  fxe4 {[%clk 0:01:01]} 20. fxe4 {[%clk 0:01:42]}  Rxf1+ {[%clk 0:00:59]} 21. Bxf1 {[%clk 0:01:42]}  Be6 {[%clk 0:00:50]} 22. b3 {[%clk 0:01:39]}  Rf8 {[%clk 0:00:45]} 23. Bg2 {[%clk 0:01:37]}  Qb7 {[%clk 0:00:40]} 24. Be3 {[%clk 0:01:34]}  a5 {[%clk 0:00:26]} 25. Nc3 {[%clk 0:01:27]}  Nxg3 {[%clk 0:00:21]} 26. Kh2 {[%clk 0:01:22]}  Nh5 {[%clk 0:00:19]} 27. Nb5 {[%clk 0:01:22]}  Qe7 {[%clk 0:00:17]} 28. Rf1 {[%clk 0:01:01]}  Nf4 {[%clk 0:00:18]} 29. Rf3 {[%clk 0:00:54]}  g5 {[%clk 0:00:15]} 30. Qd2 {[%clk 0:00:52]}  h5 {[%clk 0:00:13]} 31. Qxd6 {[%clk 0:00:49]}  Qf6 {[%clk 0:00:08]} 32. Bxc5 {[%clk 0:00:46]}  g4 {[%clk 0:00:08]} 33. Rg3 {[%clk 0:00:31]}  h4 {[%clk 0:00:08]} 34. Rxg4 {[%clk 0:00:26]}  Bxg4 {[%clk 0:00:09]} 35. Qxf6 {[%clk 0:00:24]}  Rxf6 {[%clk 0:00:09]} 36. hxg4 {[%clk 0:00:25]}  Ne6 {[%clk 0:00:07]} 37. Be7 {[%clk 0:00:21]}  Rf2 {[%clk 0:00:06]} 38. Bxh4 {[%clk 0:00:19]}  Rxa2 {[%clk 0:00:06]} 39. Kg3 {[%clk 0:00:14]}  Nf4 {[%clk 0:00:06]} 40. Bf3 {[%clk 0:00:13]}  Rb2 {[%clk 0:00:05]} 41. c5 {[%clk 0:00:12]}  Rxb3 {[%clk 0:00:05]} 42. Nd6 {[%clk 0:00:12]}  Rc3 {[%clk 0:00:05]} 43. Nb7 {[%clk 0:00:08]}  a4 {[%clk 0:00:05]} 44. Bg5 {[%clk 0:00:04]}  Ne2+ {[%clk 0:00:05]} 45. Kf2 {[%clk 0:00:03]}  Nd4 {[%clk 0:00:06]} 46. Bd1 {[%clk 0:00:02]}  a3 {[%clk 0:00:07]} 0-1


[Site "https://www.chess.com"]

[Event "Titled Tuesday Blitz April 18 Early 2023"]
[White "Womacka, Mathias"]
[Black "Itkis, Boris"]
[WhiteFideId "4611390"]
[BlackFideId "1209167"]
[WhiteElo "2377"]
[BlackElo "2216"]
[Result "1-0"]
[Round "11"]
[TimeControl "180+2"]
[Date "2023.04.18"]
[WhiteClock "0:01:05"]
[BlackClock "0:00:39"]

1. e4 {[%clk 0:02:59]}  c5 {[%clk 0:02:59]} 2. Nf3 {[%clk 0:02:58]}  Nc6 {[%clk 0:02:59]} 3. d4 {[%clk 0:02:57]}  cxd4 {[%clk 0:03:00]} 4. Nxd4 {[%clk 0:02:57]}  g6 {[%clk 0:03:01]} 5. c4 {[%clk 0:02:56]}  Bg7 {[%clk 0:03:01]} 6. Be3 {[%clk 0:02:57]}  Nf6 {[%clk 0:03:01]} 7. Nc3 {[%clk 0:02:57]}  O-O {[%clk 0:03:01]} 8. Be2 {[%clk 0:02:57]}  d6 {[%clk 0:03:01]} 9. O-O {[%clk 0:02:56]}  Bd7 {[%clk 0:02:48]} 10. Qd2 {[%clk 0:02:54]}  Rc8 {[%clk 0:02:46]} 11. Rac1 {[%clk 0:02:46]}  a6 {[%clk 0:02:41]} 12. f3 {[%clk 0:02:45]}  Nxd4 {[%clk 0:02:40]} 13. Bxd4 {[%clk 0:02:44]}  Bc6 {[%clk 0:02:40]} 14. b4 {[%clk 0:02:34]}  Ne8 {[%clk 0:01:58]} 15. Be3 {[%clk 0:02:17]}  Nc7 {[%clk 0:01:53]} 16. Rfd1 {[%clk 0:02:16]}  Qe8 {[%clk 0:01:44]} 17. Nd5 {[%clk 0:01:55]}  Nxd5 {[%clk 0:01:26]} 18. exd5 {[%clk 0:01:54]}  Bd7 {[%clk 0:01:15]} 19. c5 {[%clk 0:01:46]}  Bb5 {[%clk 0:01:08]} 20. Bg5 {[%clk 0:01:36]}  h6 {[%clk 0:00:54]} 21. Bxb5 {[%clk 0:01:09]}  Qxb5 {[%clk 0:00:55]} 22. Bxe7 {[%clk 0:01:08]}  Qxb4 {[%clk 0:00:39]} 23. Qxb4 {[%clk 0:01:05]} 1-0


[Site "https://www.chess.com"]

[Event "Titled Tuesday Blitz April 18 Early 2023"]
[White "Derichs, Roger"]
[Black "Wisniacki, Flavio"]
[WhiteFideId "4630076"]
[BlackFideId "119229"]
[WhiteElo "2327"]
[BlackElo "2150"]
[Result "0-1"]
[Round "11"]
[TimeControl "180+2"]
[Date "2023.04.18"]
[WhiteClock "0:00:02"]
[BlackClock "0:00:01"]

1. d4 {[%clk 0:02:58]}  Nf6 {[%clk 0:02:58]} 2. c4 {[%clk 0:02:57]}  e6 {[%clk 0:02:58]} 3. g3 {[%clk 0:02:57]}  d5 {[%clk 0:02:58]} 4. Nf3 {[%clk 0:02:57]}  Be7 {[%clk 0:02:57]} 5. Bg2 {[%clk 0:02:57]}  c6 {[%clk 0:02:56]} 6. O-O {[%clk 0:02:56]}  O-O {[%clk 0:02:56]} 7. Qc2 {[%clk 0:02:56]}  b6 {[%clk 0:02:55]} 8. Nbd2 {[%clk 0:02:56]}  Bb7 {[%clk 0:02:53]} 9. e4 {[%clk 0:02:56]}  Na6 {[%clk 0:02:54]} 10. a3 {[%clk 0:02:55]}  Rc8 {[%clk 0:02:52]} 11. e5 {[%clk 0:02:52]}  Nd7 {[%clk 0:02:51]} 12. b4 {[%clk 0:02:49]}  c5 {[%clk 0:02:49]} 13. dxc5 {[%clk 0:02:48]}  bxc5 {[%clk 0:02:49]} 14. b5 {[%clk 0:02:48]}  Nc7 {[%clk 0:02:49]} 15. a4 {[%clk 0:02:48]}  dxc4 {[%clk 0:02:42]} 16. Nxc4 {[%clk 0:02:45]}  Nd5 {[%clk 0:02:37]} 17. Rd1 {[%clk 0:02:37]}  N7b6 {[%clk 0:02:33]} 18. Bb2 {[%clk 0:02:28]}  Qc7 {[%clk 0:02:29]} 19. h4 {[%clk 0:02:23]}  Rfd8 {[%clk 0:02:25]} 20. Rac1 {[%clk 0:02:09]}  Nb4 {[%clk 0:02:20]} 21. Qb3 {[%clk 0:02:08]}  Bd5 {[%clk 0:02:03]} 22. Nfd2 {[%clk 0:02:05]}  Qb7 {[%clk 0:01:57]} 23. Bxd5 {[%clk 0:01:59]}  exd5 {[%clk 0:01:51]} 24. Na5 {[%clk 0:01:55]}  Qd7 {[%clk 0:01:38]} 25. Ba3 {[%clk 0:01:53]}  c4 {[%clk 0:01:28]} 26. Qf3 {[%clk 0:01:50]}  Nd3 {[%clk 0:01:27]} 27. Bxe7 {[%clk 0:01:48]}  Qxe7 {[%clk 0:01:19]} 28. Nc6 {[%clk 0:01:37]}  Rxc6 {[%clk 0:01:08]} 29. bxc6 {[%clk 0:01:38]}  Nxc1 {[%clk 0:01:00]} 30. Rxc1 {[%clk 0:01:38]}  Qc5 {[%clk 0:00:55]} 31. a5 {[%clk 0:01:30]}  Na4 {[%clk 0:00:49]} 32. Qg4 {[%clk 0:01:18]}  Qxc6 {[%clk 0:00:20]} 33. Nf3 {[%clk 0:01:18]}  Qe6 {[%clk 0:00:15]} 34. Qd4 {[%clk 0:01:09]}  Re8 {[%clk 0:00:13]} 35. Qxa7 {[%clk 0:01:05]}  Nb2 {[%clk 0:00:12]} 36. Ra1 {[%clk 0:00:59]}  Qf5 {[%clk 0:00:10]} 37. Qe3 {[%clk 0:00:56]}  Nd3 {[%clk 0:00:09]} 38. a6 {[%clk 0:00:54]}  Ra8 {[%clk 0:00:09]} 39. a7 {[%clk 0:00:37]}  c3 {[%clk 0:00:09]} 40. Qb6 {[%clk 0:00:23]}  Qc8 {[%clk 0:00:06]} 41. Nd4 {[%clk 0:00:18]}  h6 {[%clk 0:00:05]} 42. e6 {[%clk 0:00:09]}  fxe6 {[%clk 0:00:05]} 43. Nxe6 {[%clk 0:00:07]}  c2 {[%clk 0:00:04]} 44. Kg2 {[%clk 0:00:06]}  c1=Q {[%clk 0:00:02]} 45. Rxc1 {[%clk 0:00:05]}  Nxc1 {[%clk 0:00:03]} 46. Qd6 {[%clk 0:00:03]}  Nd3 {[%clk 0:00:01]} 47. Qxd5 {[%clk 0:00:02]}  Kh8 {[%clk 0:00:01]} 0-1


[Site "https://www.chess.com"]

[Event "Titled Tuesday Blitz April 18 Early 2023"]
[White "Horak, Martin"]
[Black "LeoLV10"]
[WhiteFideId "367095"]
[WhiteElo "2091"]
[BlackElo "2382"]
[Result "0-1"]
[Round "11"]
[TimeControl "180+2"]
[Date "2023.04.18"]
[WhiteClock "0:00:01"]
[BlackClock "0:01:06"]

1. e4 {[%clk 0:03:00]}  c6 {[%clk 0:02:59]} 2. Ne2 {[%clk 0:02:59]}  d5 {[%clk 0:03:00]} 3. e5 {[%clk 0:03:00]}  c5 {[%clk 0:02:54]} 4. d4 {[%clk 0:02:59]}  Nc6 {[%clk 0:02:53]} 5. c3 {[%clk 0:02:59]}  e6 {[%clk 0:02:40]} 6. Be3 {[%clk 0:02:49]}  Qb6 {[%clk 0:02:38]} 7. Qd2 {[%clk 0:02:47]}  Nh6 {[%clk 0:02:20]} 8. Bxh6 {[%clk 0:02:14]}  gxh6 {[%clk 0:02:21]} 9. g3 {[%clk 0:01:51]}  Bd7 {[%clk 0:02:20]} 10. Bg2 {[%clk 0:01:50]}  cxd4 {[%clk 0:02:20]} 11. cxd4 {[%clk 0:01:50]}  Na5 {[%clk 0:02:17]} 12. b3 {[%clk 0:01:48]}  Bb5 {[%clk 0:02:11]} 13. Nf4 {[%clk 0:01:24]}  Nc6 {[%clk 0:02:09]} 14. Bxd5 {[%clk 0:01:09]}  O-O-O {[%clk 0:01:31]} 15. Bxc6 {[%clk 0:00:40]}  Bxc6 {[%clk 0:01:24]} 16. O-O {[%clk 0:00:37]}  Rxd4 {[%clk 0:01:24]} 17. Qc2 {[%clk 0:00:24]}  Rxf4 {[%clk 0:01:20]} 18. Nd2 {[%clk 0:00:15]}  Rd4 {[%clk 0:01:19]} 19. Nc4 {[%clk 0:00:15]}  Qc7 {[%clk 0:01:19]} 20. Rad1 {[%clk 0:00:14]}  Rxd1 {[%clk 0:01:16]} 21. Rxd1 {[%clk 0:00:14]}  Be7 {[%clk 0:01:17]} 22. Rd4 {[%clk 0:00:12]}  Rd8 {[%clk 0:01:15]} 23. Rxd8+ {[%clk 0:00:03]}  Qxd8 {[%clk 0:01:16]} 24. Ne3 {[%clk 0:00:01]}  Qd4 {[%clk 0:01:10]} 25. Qxh7 {[%clk 0:00:01]}  Qa1+ {[%clk 0:01:06]} 26. Nf1 {[%clk 0:00:01]}  Bb5 {[%clk 0:01:06]} 0-1


[Site "https://www.chess.com"]

[Event "Titled Tuesday Blitz April 18 Early 2023"]
[White "Szente Varga, Fruzsina"]
[Black "Rom, Jasper"]
[WhiteFideId "712264"]
[BlackFideId "2023733"]
[WhiteElo "1994"]
[BlackElo "2233"]
[Result "1/2-1/2"]
[Round "11"]
[TimeControl "180+2"]
[Date "2023.04.18"]
[WhiteClock "0:00:06"]
[BlackClock "0:00:06"]

1. e4 {[%clk 0:03:00]}  e6 {[%clk 0:02:50]} 2. d4 {[%clk 0:03:00]}  d5 {[%clk 0:02:49]} 3. Nd2 {[%clk 0:03:01]}  Be7 {[%clk 0:02:47]} 4. c3 {[%clk 0:02:56]}  c5 {[%clk 0:02:46]} 5. e5 {[%clk 0:02:55]}  Nc6 {[%clk 0:02:41]} 6. f4 {[%clk 0:02:55]}  cxd4 {[%clk 0:02:40]} 7. cxd4 {[%clk 0:02:54]}  Nxd4 {[%clk 0:02:40]} 8. Ngf3 {[%clk 0:02:51]}  Nc6 {[%clk 0:02:39]} 9. Bd3 {[%clk 0:02:49]}  Nh6 {[%clk 0:02:33]} 10. O-O {[%clk 0:02:47]}  Ng4 {[%clk 0:02:26]} 11. Qe2 {[%clk 0:02:39]}  Qb6+ {[%clk 0:02:25]} 12. Kh1 {[%clk 0:02:37]}  Qe3 {[%clk 0:02:22]} 13. Nb3 {[%clk 0:02:28]}  Qxe2 {[%clk 0:02:17]} 14. Bxe2 {[%clk 0:02:29]}  O-O {[%clk 0:02:09]} 15. h3 {[%clk 0:02:29]}  Nh6 {[%clk 0:02:09]} 16. g4 {[%clk 0:02:30]}  Bd7 {[%clk 0:01:57]} 17. Bd2 {[%clk 0:01:58]}  Rac8 {[%clk 0:01:52]} 18. Rg1 {[%clk 0:01:48]}  f6 {[%clk 0:01:41]} 19. exf6 {[%clk 0:01:45]}  gxf6 {[%clk 0:01:41]} 20. f5 {[%clk 0:01:28]}  Nf7 {[%clk 0:01:30]} 21. fxe6 {[%clk 0:01:28]}  Bxe6 {[%clk 0:01:30]} 22. Rae1 {[%clk 0:01:11]}  Nce5 {[%clk 0:01:10]} 23. g5 {[%clk 0:00:50]}  Kh8 {[%clk 0:01:04]} 24. Nfd4 {[%clk 0:00:28]}  Bxh3 {[%clk 0:00:57]} 25. Bh5 {[%clk 0:00:19]}  Bd6 {[%clk 0:00:17]} 26. gxf6 {[%clk 0:00:13]}  Rg8 {[%clk 0:00:18]} 27. Bxf7 {[%clk 0:00:07]}  Nxf7 {[%clk 0:00:17]} 28. Ne6 {[%clk 0:00:08]}  Rxg1+ {[%clk 0:00:15]} 29. Kxg1 {[%clk 0:00:08]}  Rg8+ {[%clk 0:00:15]} 30. Kh1 {[%clk 0:00:06]}  Bg2+ {[%clk 0:00:15]} 31. Kg1 {[%clk 0:00:07]}  Be4+ {[%clk 0:00:14]} 32. Kf1 {[%clk 0:00:07]}  Bd3+ {[%clk 0:00:14]} 33. Kf2 {[%clk 0:00:07]}  Bg3+ {[%clk 0:00:15]} 34. Ke3 {[%clk 0:00:07]}  Bxe1 {[%clk 0:00:15]} 35. Bxe1 {[%clk 0:00:07]}  Re8 {[%clk 0:00:15]} 36. Nd4 {[%clk 0:00:07]}  Bf5 {[%clk 0:00:11]} 37. Nxf5 {[%clk 0:00:06]}  Rxe6+ {[%clk 0:00:11]} 38. Kd4 {[%clk 0:00:07]}  Rxf6 {[%clk 0:00:12]} 39. Ne3 {[%clk 0:00:07]}  Re6 {[%clk 0:00:10]} 40. Bc3 {[%clk 0:00:07]}  Re4+ {[%clk 0:00:09]} 41. Kxd5+ {[%clk 0:00:06]}  Kg8 {[%clk 0:00:02]} 42. Kxe4 {[%clk 0:00:06]}  Kf8 {[%clk 0:00:02]} 43. Kf5 {[%clk 0:00:06]}  Ke7 {[%clk 0:00:02]} 44. Ng4 {[%clk 0:00:06]}  Nd6+ {[%clk 0:00:02]} 45. Kg5 {[%clk 0:00:06]}  Ne4+ {[%clk 0:00:02]} 46. Kh6 {[%clk 0:00:07]}  Nxc3 {[%clk 0:00:02]} 47. bxc3 {[%clk 0:00:08]}  Kd6 {[%clk 0:00:03]} 48. Ne3 {[%clk 0:00:05]}  Ke5 {[%clk 0:00:02]} 49. Kxh7 {[%clk 0:00:04]}  Ke4 {[%clk 0:00:02]} 50. Nd1 {[%clk 0:00:04]}  Kd3 {[%clk 0:00:03]} 51. Kg6 {[%clk 0:00:02]}  Kc2 {[%clk 0:00:02]} 52. Ne3+ {[%clk 0:00:03]}  Kxc3 {[%clk 0:00:03]} 53. Kf5 {[%clk 0:00:03]}  Kb2 {[%clk 0:00:03]} 54. a4 {[%clk 0:00:04]}  Kb3 {[%clk 0:00:03]} 55. a5 {[%clk 0:00:04]}  Kb4 {[%clk 0:00:04]} 56. a6 {[%clk 0:00:04]}  bxa6 {[%clk 0:00:04]} 57. Ke4 {[%clk 0:00:05]}  a5 {[%clk 0:00:05]} 58. Kd3 {[%clk 0:00:06]}  Kb3 {[%clk 0:00:05]} 59. Nc4 {[%clk 0:00:05]}  a4 {[%clk 0:00:05]} 60. Nd2+ {[%clk 0:00:05]}  Kb2 {[%clk 0:00:05]} 61. Nc4+ {[%clk 0:00:06]}  Kb3 {[%clk 0:00:06]} 62. Nd2+ {[%clk 0:00:06]}  Kb2 {[%clk 0:00:06]} 63. Nc4+ {[%clk 0:00:06]}  Kb3 {[%clk 0:00:06]} 1/2-1/2


[Site "https://www.chess.com"]

[Event "Titled Tuesday Blitz April 18 Early 2023"]
[White "Omariev, Maksim"]
[Black "Buscar, Michael"]
[WhiteFideId "4193423"]
[BlackFideId "2603616"]
[WhiteElo "2446"]
[BlackElo "2010"]
[Result "0-1"]
[Round "11"]
[TimeControl "180+2"]
[Date "2023.04.18"]
[WhiteClock "0:00:09"]
[BlackClock "0:00:31"]

1. e4 {[%clk 0:03:00]}  c5 {[%clk 0:02:57]} 2. Nf3 {[%clk 0:03:01]}  Nc6 {[%clk 0:02:56]} 3. d4 {[%clk 0:03:01]}  cxd4 {[%clk 0:02:56]} 4. Nxd4 {[%clk 0:03:02]}  Nf6 {[%clk 0:02:56]} 5. Nc3 {[%clk 0:03:03]}  e5 {[%clk 0:02:57]} 6. Ndb5 {[%clk 0:03:03]}  h6 {[%clk 0:02:57]} 7. Nd6+ {[%clk 0:03:03]}  Bxd6 {[%clk 0:02:57]} 8. Qxd6 {[%clk 0:03:04]}  Qe7 {[%clk 0:02:58]} 9. Qxe7+ {[%clk 0:03:04]}  Kxe7 {[%clk 0:02:59]} 10. Be3 {[%clk 0:02:55]}  Rd8 {[%clk 0:03:00]} 11. Be2 {[%clk 0:02:42]}  d6 {[%clk 0:02:59]} 12. O-O-O {[%clk 0:02:39]}  Be6 {[%clk 0:03:00]} 13. Rd2 {[%clk 0:02:34]}  Rac8 {[%clk 0:02:57]} 14. Rhd1 {[%clk 0:02:34]}  b6 {[%clk 0:02:50]} 15. f3 {[%clk 0:02:14]}  Na5 {[%clk 0:02:36]} 16. Nb5 {[%clk 0:02:07]}  Bxa2 {[%clk 0:02:28]} 17. Nc3 {[%clk 0:01:10]}  Bc4 {[%clk 0:02:20]} 18. Kb1 {[%clk 0:01:02]}  Bxe2 {[%clk 0:02:15]} 19. Rxe2 {[%clk 0:01:03]}  Nc4 {[%clk 0:02:15]} 20. Bc1 {[%clk 0:01:03]}  Rc5 {[%clk 0:02:07]} 21. b3 {[%clk 0:01:03]}  Na3+ {[%clk 0:01:58]} 22. Bxa3 {[%clk 0:01:02]}  Rxc3 {[%clk 0:01:58]} 23. Red2 {[%clk 0:01:02]}  Rc6 {[%clk 0:01:55]} 24. c4 {[%clk 0:01:01]}  Ke6 {[%clk 0:01:53]} 25. Kb2 {[%clk 0:00:55]}  Ne8 {[%clk 0:01:53]} 26. h4 {[%clk 0:00:48]}  f5 {[%clk 0:01:53]} 27. exf5+ {[%clk 0:00:44]}  Kxf5 {[%clk 0:01:52]} 28. Bb4 {[%clk 0:00:40]}  a5 {[%clk 0:01:43]} 29. Ba3 {[%clk 0:00:36]}  Ke6 {[%clk 0:01:43]} 30. h5 {[%clk 0:00:33]}  a4 {[%clk 0:01:43]} 31. g4 {[%clk 0:00:32]}  axb3 {[%clk 0:01:42]} 32. Kxb3 {[%clk 0:00:33]}  Rb8 {[%clk 0:01:36]} 33. Rd5 {[%clk 0:00:28]}  Rbc8 {[%clk 0:01:31]} 34. R1d3 {[%clk 0:00:22]}  Rxc4 {[%clk 0:01:22]} 35. Bxd6 {[%clk 0:00:20]}  Rc3+ {[%clk 0:01:17]} 36. Rxc3 {[%clk 0:00:09]}  Rxc3+ {[%clk 0:01:16]} 37. Kxc3 {[%clk 0:00:10]}  Kxd5 {[%clk 0:01:17]} 38. Bf8 {[%clk 0:00:10]}  Ke6 {[%clk 0:01:13]} 39. Kc4 {[%clk 0:00:09]}  Kf7 {[%clk 0:01:13]} 40. Bb4 {[%clk 0:00:04]}  Nf6 {[%clk 0:01:03]} 41. Kb5 {[%clk 0:00:03]}  Nd7 {[%clk 0:01:02]} 42. Kc6 {[%clk 0:00:03]}  Ke6 {[%clk 0:01:03]} 43. Bc3 {[%clk 0:00:02]}  Nf6 {[%clk 0:00:54]} 44. Bb2 {[%clk 0:00:01]}  Nd5 {[%clk 0:00:53]} 45. Ba1 {[%clk 0:00:01]}  Nb4+ {[%clk 0:00:41]} 46. Kxb6 {[%clk 0:00:01]}  Nc2 {[%clk 0:00:41]} 47. Bc3 {[%clk 0:00:01]}  Nd4 {[%clk 0:00:41]} 48. Kc5 {[%clk 0:00:01]}  Nxf3 {[%clk 0:00:41]} 49. Kc4 {[%clk 0:00:01]}  Nh2 {[%clk 0:00:39]} 50. g5 {[%clk 0:00:01]}  hxg5 {[%clk 0:00:36]} 51. Kd3 {[%clk 0:00:02]}  Kf5 {[%clk 0:00:35]} 52. Ke3 {[%clk 0:00:02]}  Ng4+ {[%clk 0:00:32]} 53. Kf3 {[%clk 0:00:02]}  Nf6 {[%clk 0:00:32]} 54. Bxe5 {[%clk 0:00:01]}  Kxe5 {[%clk 0:00:30]} 55. Kg3 {[%clk 0:00:01]}  Kf5 {[%clk 0:00:30]} 56. h6 {[%clk 0:00:01]}  gxh6 {[%clk 0:00:29]} 57. Kh3 {[%clk 0:00:02]}  h5 {[%clk 0:00:30]} 58. Kg3 {[%clk 0:00:03]}  h4+ {[%clk 0:00:31]} 59. Kh3 {[%clk 0:00:03]}  Kf4 {[%clk 0:00:31]} 60. Kh2 {[%clk 0:00:04]}  Kg4 {[%clk 0:00:32]} 61. Kg2 {[%clk 0:00:05]}  h3+ {[%clk 0:00:32]} 62. Kh2 {[%clk 0:00:05]}  Kh4 {[%clk 0:00:33]} 63. Kh1 {[%clk 0:00:06]}  Kg3 {[%clk 0:00:33]} 64. Kg1 {[%clk 0:00:06]}  Ng4 {[%clk 0:00:34]} 65. Kh1 {[%clk 0:00:07]}  Nf2+ {[%clk 0:00:31]} 66. Kg1 {[%clk 0:00:06]}  h2+ {[%clk 0:00:32]} 67. Kf1 {[%clk 0:00:07]}  h1=Q+ {[%clk 0:00:32]} 68. Ke2 {[%clk 0:00:08]}  Qe4+ {[%clk 0:00:32]} 69. Kd2 {[%clk 0:00:08]}  Qd3+ {[%clk 0:00:32]} 70. Kc1 {[%clk 0:00:09]}  Qe2 {[%clk 0:00:31]} 71. Kb1 {[%clk 0:00:08]}  Nd3 {[%clk 0:00:31]} 72. Ka1 {[%clk 0:00:09]}  Qb2# {[%clk 0:00:31]} 0-1


[Site "https://www.chess.com"]